fUSD/lending_fUSD_20251025
["ID","MTS","AMOUNT","RATE_DAILY","PERIOD"]
[392340146,1761366554513,-0.00864622,0.00014998,2]
[392340147,1761366554535,-357.06640208,0.00014998,2]
[392340148,1761366556707,-142.93359792,0.00014998,2]
[392340149,1761366556732,-26.22171962,0.00014998,2]
[392340150,1761366557797,3681.9512436,0.000149,2]
[392340151,1761366558331,-241.49313304,0.00014998,2]
[392340152,1761366561203,-233.99785473,0.00014998,2]
[392340153,1761366564705,-215.60634023,0.00014998,2]
[392340154,1761366567433,-128.37826486,0.00014998,2]
[392340155,1761366567456,-45.69682907,0.00014998,2]
[392340156,1761366583944,-225.15136936,0.00014998,2]
[392340157,1761366585665,-229.15180157,0.00014998,2]
[392340158,1761366585690,-159.64630643,0.00014998,2]
[392340159,1761366588498,-173.11268397,0.00014998,2]
[392340160,1761366590835,-138.86487797,0.00014998,2]
[392340161,1761366590861,-161.13512203,0.00014998,2]
[392340162,1761366597230,-203.31234584,0.00014998,2]
[392340163,1761366601356,179.76,0.00014136,2]
[392340164,1761366602855,1000.0,0.0002,7]
[392340165,1761366603291,-300.0,0.00014997,2]
[392340166,1761366603314,-101.0,0.00014997,2]
[392340167,1761366606049,-165.35336065,0.00014997,2]
[392340168,1761366607764,-325.36401293,0.00014997,2]
[392340169,1761366607867,63.31960654,0.000149,2]
[392340170,1761366607889,454.24636415,0.000149,2]
[392340171,1761366610625,-207.86173315,0.0001499,2]
[392340172,1761366612638,-284.40820052,0.0001499,2]
[392340173,1761366617444,2125.72484063,0.000149,2]
[392340174,1761366618364,-53.61006633,0.0001499,2]
[392340175,1761366618387,-127.5770475,0.0001499,2]
[392340176,1761366619991,-313.74371615,0.0001499,2]
[392340177,1761366621620,-104.55923635,0.0001499,2]
[392340178,1761366621641,-494.88627344,0.0001499,2]
[392340179,1761366621661,-134.83555121,0.0001499,2]
[392340180,1761366623400,-178.17581987,0.0001499,2]
[392340181,1761366625623,-181.87490236,0.0001499,2]
[392340182,1761366625646,-142.82193062,0.00014997,2]
[392340183,1761366627233,821.87352215,0.000149,2]
[392340184,1761366628501,-216.53120506,0.00014997,2]
[392340185,1761366629292,153.883794,0.00020517,7]
[392340186,1761366631331,153.883794,0.00020517,7]
[392340200,1761366631647,-248.92949074,0.00014997,2]
[392340201,1761366631657,-300.0,0.00014997,2]
[392340202,1761366631667,-150.0,0.00014997,2]
[392340203,1761366631677,-143.03498523,0.00014999,2]
[392340204,1761366631687,-500.0,0.00014999,2]
[392340205,1761366631698,-1601.50747345,0.00014999,2]
[392340206,1761366631719,-299.99,0.00014999,2]
[392340207,1761366631759,-291.38784597,0.00014999,2]
[392340208,1761366631771,-6794.0561623,0.00014999,2]
[392340209,1761366631819,-500.0,0.00014997,2]
[392340210,1761366631832,-190.25017021,0.00014997,2]
[392340211,1761366631842,-4968.24736108,0.00014999,2]
[392340212,1761366631943,-690.25017021,0.00014997,2]
[392340213,1761366631953,-690.25017021,0.00014997,2]
[392340214,1761366631964,-690.25017021,0.00014997,2]
[392340215,1761366631974,-496.37761296,0.00014997,2]
[392340216,1761366631985,-690.25017021,0.00014997,2]
[392340217,1761366631995,-210.7322278,0.00014999,2]
[392340218,1761366632005,-500.0,0.00014999,2]
[392340219,1761366632015,-143383.47817983,0.00015,2]
[392340225,1761366632603,-253.25611278,0.00014997,2]
[392340226,1761366633583,153.883794,0.00020517,7]
[392340227,1761366634917,153.883794,0.00020517,7]
[392340228,1761366636604,-198.85070738,0.00014997,2]
[392340231,1761366637519,-238.14335005,0.00014997,2]
[392340232,1761366637528,-690.25017021,0.00014997,2]
[392340233,1761366637538,-690.25017021,0.00014997,2]
[392340234,1761366637547,-690.25017021,0.00014997,2]
[392340235,1761366637561,-690.25017021,0.00014997,2]
[392340236,1761366637570,-690.25017021,0.00014997,2]
[392340237,1761366637582,-690.25017021,0.00014997,2]
[392340238,1761366637592,-690.25017021,0.00014997,2]
[392340239,1761366637602,-690.25017021,0.00014997,2]
[392340240,1761366637611,-690.25017021,0.00014997,2]
[392340241,1761366637625,-690.25017021,0.00014997,2]
[392340242,1761366637634,-690.25017021,0.00014997,2]
[392340243,1761366637644,-690.25017021,0.00014997,2]
[392340244,1761366637653,-690.25017021,0.00014997,2]
[392340245,1761366637663,-690.25017021,0.00014997,2]
[392340246,1761366637673,-690.25017021,0.00014997,2]
[392340247,1761366637682,-690.25017021,0.00014997,2]
[392340248,1761366637691,-690.25017021,0.00014997,2]
[392340249,1761366637700,-690.25017021,0.00014997,2]
[392340250,1761366637710,-690.25017021,0.00014997,2]
[392340251,1761366637719,-690.25017021,0.00014997,2]
[392340252,1761366637729,-690.25017021,0.00014997,2]
[392340253,1761366637738,-690.25017021,0.00014997,2]
[392340254,1761366637747,-690.25017021,0.00014997,2]
[392340255,1761366637761,-690.25017021,0.00014997,2]
[392340256,1761366637770,-690.25017021,0.00014997,2]
[392340257,1761366637779,-690.25017021,0.00014997,2]
[392340258,1761366637789,-690.25017021,0.00014997,2]
[392340259,1761366637798,-690.25017021,0.00014997,2]
[392340260,1761366637811,-690.25017021,0.00014997,2]
[392340261,1761366637820,-690.25017021,0.00014997,2]
[392340262,1761366637830,-690.25017021,0.00014997,2]
[392340263,1761366637839,-690.25017021,0.00014997,2]
[392340265,1761366637849,-690.25017021,0.00014997,2]
[392340267,1761366637859,-690.25017021,0.00014997,2]
[392340269,1761366637869,-690.25017021,0.00014997,2]
[392340271,1761366637879,-690.25017021,0.00014997,2]
[392340273,1761366637888,-690.25017021,0.00014997,2]
[392340275,1761366637898,-690.25017021,0.00014997,2]
[392340277,1761366637907,-690.25017021,0.00014997,2]
[392340279,1761366637917,-690.25017021,0.00014997,2]
[392340281,1761366637926,-690.25017021,0.00014997,2]
[392340283,1761366637935,-690.25017021,0.00014997,2]
[392340285,1761366637944,-690.25017021,0.00014997,2]
[392340287,1761366637953,-690.25017021,0.00014997,2]
[392340289,1761366637966,-690.25017021,0.00014997,2]
[392340292,1761366637976,-690.25017021,0.00014997,2]
[392340294,1761366637986,-690.25017021,0.00014997,2]
[392340296,1761366637995,-690.25017021,0.00014997,2]
[392340298,1761366638004,-79.37590887,0.00014997,2]
[392340305,1761366638068,151.0,0.00020517,7]
[392340356,1761366638896,-304.60073431,0.00014997,2]
[392340358,1761366639427,151.0,0.00020517,7]
[392340492,1761366640847,-1.6e-07,0.00014997,2]
[392340496,1761366640874,-306.27352687,0.00014997,2]
[392340498,1761366640883,-690.25017021,0.00014997,2]
[392340500,1761366640892,-690.25017021,0.00014997,2]
[392340502,1761366640902,-690.25017021,0.00014997,2]
[392340504,1761366640912,-690.25017021,0.00014997,2]
[392340506,1761366640921,-690.25017021,0.00014997,2]
[392340508,1761366640930,-690.25017021,0.00014997,2]
[392340510,1761366640939,-1578882.74973163,0.00015,2]
[392340512,1761366640950,-716730.64608757,0.00015,2]
[392340514,1761366640960,-2449220.98382943,0.00015,2]
[392340516,1761366640969,-2122.24758528,0.00015,2]
[392340518,1761366640978,-300.0,0.00015375,2]
[392340520,1761366640987,-195.0,0.0001575,2]
[392340522,1761366640997,-255.0,0.00016122,2]
[392340524,1761366641006,-420.0,0.00016413,2]
[392340526,1761366641015,-1680.0,0.00016415,2]
[392340528,1761366641025,-170.80410494,0.00016438,2]
[392340530,1761366641034,-300.0,0.0001647,2]
[392340532,1761366641043,-300.0,0.0001647,2]
[392340534,1761366641052,-371.94038695,0.0001647,2]
[392340536,1761366641061,-1680.0,0.00016497,2]
[392340538,1761366641070,-195.0,0.00016498,2]
[392340540,1761366641079,-195.0,0.00016498,2]
[392340542,1761366641088,-5000.0,0.000165,2]
[392340544,1761366641098,-303.16277003,0.000165,2]
[392340546,1761366641107,-300.77884551,0.000165,2]
[392340548,1761366641117,-195.0,0.000165,2]
[392340550,1761366641126,-300.0,0.000165,2]
[392340552,1761366641135,-4060.58044416,0.000167,2]
[392340554,1761366641145,-195.0,0.0001702,2]
[392340556,1761366641154,-3160.8442371,0.00017041,2]
[392340558,1761366641163,-433.0,0.00017337,2]
[392340560,1761366641173,-705.2796808,0.00017496,2]
[392340561,1761366641182,-277.96,0.00017739,2]
[392340562,1761366641191,-165.14074574,0.0001786,2]
[392340563,1761366641201,-587.0,0.00017964,2]
[392340564,1761366641210,-2351.0,0.00017965,2]
[392340565,1761366641220,-27985.60410351,0.00018,2]
[392340566,1761366641230,-200.0,0.00018121,2]
[392340567,1761366641239,-2351.0,0.00018146,2]
[392340568,1761366641250,-10747.24344496,0.000183,2]
[392340570,1761366641259,-659.43257876,0.00018329,2]
[392340572,1761366641268,-4894.47476305,0.000185,2]
[392340574,1761366641278,-257.03649652,0.00018502,2]
[392340577,1761366641292,-736.0,0.00018626,2]
[392340578,1761366641301,-150.87,0.000188,2]
[392340581,1761366641311,-150.87,0.000188,2]
[392340582,1761366641320,-150.87,0.000188,2]
[392340584,1761366641329,-150.87,0.000188,2]
[392340586,1761366641338,-150.87,0.000188,2]
[392340589,1761366641348,-150.87,0.000188,2]
[392340591,1761366641357,-150.87,0.000188,2]
[392340593,1761366641366,-150.87,0.000188,2]
[392340595,1761366641375,-150.87,0.000188,2]
[392340597,1761366641384,-150.87,0.000188,2]
[392340599,1761366641393,-150.87,0.000188,2]
[392340601,1761366641403,-150.87,0.000188,2]
[392340603,1761366641411,-150.87,0.000188,2]
[392340605,1761366641420,-150.87,0.000188,2]
[392340607,1761366641429,-150.87,0.000188,2]
[392340609,1761366641442,-150.87,0.000188,2]
[392340611,1761366641451,-150.87,0.000188,2]
[392340613,1761366641461,-150.87,0.000188,2]
[392340615,1761366641470,-150.87,0.000188,2]
[392340617,1761366641479,-150.87,0.000188,2]
[392340619,1761366641489,-150.87,0.000188,2]
[392340621,1761366641498,-150.87,0.000188,2]
[392340623,1761366641507,-150.87,0.000188,2]
[392340625,1761366641516,-150.87,0.000188,2]
[392340627,1761366641525,-150.87,0.000188,2]
[392340629,1761366641534,-150.87,0.000188,2]
[392340631,1761366641543,-150.87,0.000188,2]
[392340633,1761366641552,-463.89098609,0.00019,2]
[392340635,1761366641561,-823.0,0.0001966,2]
[392340637,1761366641570,-3292.0,0.00019662,2]
[392340639,1761366641579,-250.0,0.00019817,2]
[392340641,1761366641588,-3292.0,0.00019961,2]
[392340643,1761366641598,-150.87,0.0001999,2]
[392340645,1761366641607,-6044.36527556,0.0002,2]
[392340647,1761366641616,-4649.82831189,0.0002,2]
[392340649,1761366641625,-3950.0,0.0002,2]
[392340651,1761366641634,-1263.04531477,0.0002,2]
[392340653,1761366641643,-3717.33030232,0.0002,2]
[392340655,1761366641652,-1033.83556957,0.0002,2]
[392340657,1761366641661,-264.31054857,0.0002,2]
[392340659,1761366641671,-2665.37539448,0.0002,2]
[392340661,1761366641680,-35519.85522778,0.0002,2]
[392340663,1761366641689,-8715.15691724,0.0002,2]
[392340665,1761366641698,-1252.0,0.00020021,2]
[392340667,1761366641707,-250.0,0.00020352,2]
[392340669,1761366641717,-10747.24344492,0.00020517,2]
[392340671,1761366641727,-16738.84040123,0.000207,2]
[392340674,1761366641738,-165.14074574,0.00020821,2]
[392340676,1761366641747,-39675.25812682,0.0002085,2]
[392340678,1761366641758,-36431.76293984,0.00021,2]
[392340680,1761366641768,-417.0,0.000211,2]
[392340682,1761366641779,-179.76,0.00021205,2]
[392340684,1761366641789,-33882.28862551,0.000215,2]
[392340686,1761366641799,-150.87,0.00021508,2]
[392340688,1761366641809,-1152.0,0.00021517,2]
[392340690,1761366641818,-2106.0,0.00021518,2]
[392340693,1761366641829,-2129.0,0.00021536,2]
[392340695,1761366641839,-659.43257876,0.00021757,2]
[392340697,1761366641848,-250.0,0.00021761,2]
[392340699,1761366641858,-4609.0,0.00021957,2]
[392340701,1761366641868,-150.87,0.0002199,2]
[392340703,1761366641879,-169122.22081371,0.00022,4]
[392340705,1761366641888,-1728.67872081,0.00022,2]
[392340707,1761366641897,-31726.06,0.00022,7]
[392340709,1761366641907,-476.4830027,0.00022,7]
[392340711,1761366641917,-153.883794,0.00022,7]
[392340714,1761366641926,-153.883794,0.00022,7]
[392340716,1761366641935,-153.883794,0.00022,7]
[392340718,1761366641944,-153.883794,0.00022,7]
[392340720,1761366641954,-151.0,0.00022,7]
[392340722,1761366641966,-151.0,0.00022,7]
[392340724,1761366641976,-1000.0,0.000225,7]
[392340726,1761366641987,-517.02426093,0.0002271,2]
[392340728,1761366641998,-10747.24344492,0.00022735,2]
[392340730,1761366642007,-19170.53692289,0.000229,2]
[392340733,1761366642017,-434.82205696,0.00023,2]
[392340735,1761366642027,-996.08093227,0.00023,2]
[392340737,1761366642036,-2556.33977334,0.000231,2]
[392340739,1761366642046,-1866.0,0.0002314,2]
[392340741,1761366642055,-150.87,0.0002319,2]
[392340743,1761366642065,-51579.7967611,0.000232,2]
[392340745,1761366642074,-200.0,0.000235,2]
[392340747,1761366642083,-548.0,0.00023549,2]
[392340749,1761366642093,-165.14074574,0.00023781,2]
[392340751,1761366642102,-627.09,0.00023836,2]
[392340753,1761366642111,-3600.0,0.00024,2]
[392340755,1761366642120,-16018.40886415,0.00024,2]
[392340757,1761366642130,-151.0,0.0002411,7]
[392340759,1761366642140,-151.0,0.0002411,7]
[392340762,1761366642149,-151.0,0.0002411,7]
[392340764,1761366642159,-6453.0,0.00024153,2]
[392340766,1761366642167,-416.79022724,0.0002421,2]
[392340768,1761366642177,-3652.16642468,0.0002421,2]
[392340770,1761366642186,-438.38061077,0.0002465,2]
[392340772,1761366642196,-150.87,0.0002479,2]
[392340774,1761366642205,-150.87,0.0002479,2]
[392340776,1761366642215,-370883.212943,0.000248,2]
[392340778,1761366642224,-183.70405959,0.000248,2]
[392340780,1761366642234,-153.883794,0.000248,7]
[392340782,1761366642244,-153.883794,0.000248,7]
[392340784,1761366642255,-153.883794,0.000248,7]
[392340786,1761366642265,-153.883794,0.000248,7]
[392340788,1761366642274,-151.0,0.000248,7]
[392340790,1761366642286,-151.0,0.000248,7]
[392340792,1761366642296,-150.87,0.0002489,2]
[392340794,1761366642306,-494.88627344,0.0002489,2]
[392340796,1761366642315,-135819.365059,0.000249,2]
[392340798,1761366642324,-31726.06,0.000249,7]
[392340800,1761366642334,-153.883794,0.000249,7]
[392340802,1761366642343,-476.4830027,0.000249,7]
[392340805,1761366642353,-153.883794,0.000249,7]
[392340806,1761366642364,-153.883794,0.000249,7]
[392340809,1761366642374,-153.883794,0.000249,7]
[392340811,1761366642383,-151.0,0.000249,7]
[392340813,1761366642392,-10747.24344492,0.00024952,2]
[392340815,1761366642401,-1291.24029093,0.00025,2]
[392340817,1761366642410,-4733.51459484,0.00025,3]
[392340819,1761366642419,-360.0,0.00025,2]
[392340821,1761366642428,-25166.22851848,0.00025,2]
[392340823,1761366642439,-1049.33399476,0.00025,2]
[392340825,1761366642448,-164.93107429,0.00025,2]
[392340827,1761366642460,-2865.05447213,0.00025,2]
[392340829,1761366642469,-503.40378919,0.00025,7]
[392340831,1761366642480,-1000.0,0.00025,7]
[392340834,1761366642494,-659.43257876,0.00025186,2]
[392340836,1761366642503,-502.33277462,0.0002535,2]
[392340838,1761366642515,-500.0,0.0002535,2]
[392340840,1761366642525,-500.0,0.0002535,2]
[392340842,1761366642534,-501.39516566,0.0002535,2]
[392340844,1761366642543,-500.0,0.0002535,2]
[392340846,1761366642551,-500.0,0.0002535,2]
[392340848,1761366642561,-500.0,0.0002535,2]
[392340850,1761366642570,-502.81111038,0.0002535,2]
[392340852,1761366642580,-318.1922407,0.0002535,2]
[392340853,1761366642589,-501.64826271,0.0002535,2]
[392340854,1761366642598,-500.0,0.0002535,2]
[392340855,1761366642607,-1000.0,0.00025898,2]
[392340856,1761366642617,-837.82055885,0.00025898,2]
[392340858,1761366642627,-505.79427132,0.00025898,2]
[392340859,1761366642638,-1000.0,0.00025898,2]
[392340860,1761366642647,-1000.0,0.00025898,2]
[392340862,1761366642656,-2810.52105742,0.00026,10]
[392340864,1761366642666,-500.0,0.00026446,2]
[392340867,1761366642675,-1500.0,0.00026446,2]
[392340869,1761366642685,-1500.0,0.00026446,2]
[392340871,1761366642694,-3552.0,0.00026568,2]
[392340873,1761366642703,-165.14074574,0.00026741,2]
[392340875,1761366642712,-516.6096342,0.00026994,2]
[392340877,1761366642720,-1711.00603519,0.00026994,2]
[392340879,1761366642730,-250.0,0.00027,2]
[392340881,1761366642739,-10747.24344492,0.00027169,2]
[392340883,1761366642750,-4324.06298428,0.0002739,7]
[392340885,1761366642759,-151.0,0.00027397,30]
[392340887,1761366642769,-151.0,0.00027397,30]
[392340889,1761366642780,-151.0,0.00027397,30]
[392340891,1761366642790,-152.170934,0.00027397,30]
[392340893,1761366642800,-151.0,0.00027397,30]
[392340895,1761366642810,-151.0,0.00027397,30]
[392340897,1761366642820,-151.0,0.00027397,30]
[392340900,1761366642829,-151.0,0.00027397,30]
[392340902,1761366642838,-155.225836,0.00027397,30]
[392340904,1761366642847,-151.0,0.00027397,30]
[392340906,1761366642858,-151.0,0.00027397,30]
[392340908,1761366642867,-151.0,0.00027397,30]
[392340909,1761366642876,-151.0,0.00027397,30]
[392340912,1761366642886,-151.0,0.00027397,30]
[392340914,1761366642897,-151.0,0.00027397,30]
[392340916,1761366642908,-151.0,0.00027397,30]
[392340918,1761366642918,-151.0,0.00027397,30]
[392340920,1761366642927,-151.0,0.00027397,30]
[392340922,1761366642937,-151.0,0.00027397,30]
[392340924,1761366642947,-151.0,0.00027397,30]
[392340926,1761366642957,-276.507702,0.00027397,30]
[392340928,1761366642969,-151.0,0.00027397,30]
[392340931,1761366642979,-163.771548,0.00027397,30]
[392340933,1761366642989,-151.0,0.00027397,30]
[392340935,1761366642998,-167.878974,0.00027397,30]
[392340937,1761366643008,-151.0,0.00027397,30]
[392340939,1761366643017,-151.0,0.00027397,30]
[392340941,1761366643026,-151.0,0.00027397,30]
[392340943,1761366643035,-151.0,0.00027397,30]
[392340945,1761366643044,-229.071498,0.00027397,30]
[392340947,1761366643054,-151.0,0.00027397,30]
[392340949,1761366643063,-151.0,0.00027397,30]
[392340951,1761366643073,-181.688731,0.00027397,30]
[392340953,1761366643082,-151.914063,0.00027397,30]
[392340955,1761366643091,-151.0,0.00027397,30]
[392340957,1761366643100,-151.0,0.00027397,30]
[392340959,1761366643110,-151.0,0.00027397,30]
[392340961,1761366643119,-152.460993,0.00027397,30]
[392340963,1761366643128,-153.961455,0.00027397,30]
[392340965,1761366643138,-153.881134,0.00027397,30]
[392340973,1761366643199,-151.0,0.00027397,30]
[392340975,1761366643211,-301.872764,0.00027397,30]
[392340977,1761366643220,-151.0,0.00027397,30]
[392340979,1761366643229,-151.0,0.00027397,30]
[392340981,1761366643238,-4090.4,0.000274,2]
[392340983,1761366643247,-1761.13,0.000274,2]
[392340985,1761366643255,-1761.13,0.000274,2]
[392340987,1761366643264,-1761.13,0.000274,2]
[392340989,1761366643274,-1761.13,0.000274,2]
[392340990,1761366643283,-1761.13,0.000274,2]
[392340992,1761366643294,-1000.0,0.000275,7]
[392340993,1761366643303,-48933.84528988,0.00028,2]
[392340994,1761366643312,-160.0,0.00028,2]
[392340995,1761366643320,-659.43257876,0.00028614,2]
[392340996,1761366643329,-183.70405959,0.0002862,2]
[392340998,1761366643338,-13100.05401161,0.0002875,2]
[392341000,1761366643347,-10747.24344492,0.00029387,2]
[392341001,1761366643356,-153.883794,0.00029387,30]
[392341002,1761366643367,-153.883794,0.00029387,30]
[392341003,1761366643377,-153.883794,0.00029387,30]
[392341004,1761366643387,-153.883795,0.00029387,30]
[392341005,1761366643397,-151.0,0.00029387,30]
[392341006,1761366643406,-688.23,0.000294,7]
[392341007,1761366643416,-165.14074574,0.00029702,15]
[392341008,1761366643426,-250.0,0.00029853,2]
[392341009,1761366643435,-409.01793764,0.0002986,2]
[392341010,1761366643443,-3681.95124359,0.0002986,2]
[392341011,1761366643454,-821.87352214,0.0002986,2]
[392341012,1761366643464,-947.05,0.000299,7]
[392341013,1761366643475,-31726.06,0.000299,7]
[392341014,1761366643484,-151.0,0.00031,30]
[392341015,1761366643495,-267.782194,0.00031,30]
[392341016,1761366643506,-37288.0,0.00031,2]
[392341017,1761366643516,-4090.4,0.000316,2]
[392341018,1761366643525,-10747.24344492,0.00031604,2]
[392341019,1761366643534,-5514.0,0.00032,3]
[392341020,1761366643544,-659.43257876,0.00032043,2]
[392341021,1761366643553,-476.4830027,0.000323,3]
[392341022,1761366643563,-183.70405959,0.0003244,2]
[392341023,1761366643574,-165.14074574,0.00032662,15]
[392341024,1761366643583,-151.0,0.000328,30]
[392341025,1761366643591,-151.0,0.000328,30]
[392341026,1761366643601,-301.588517,0.000328,30]
[392341027,1761366643611,-151.0,0.000328,30]
[392341028,1761366643620,-151.0,0.000328,30]
[392341029,1761366643629,-151.0,0.000328,30]
[392341030,1761366643638,-151.0,0.000328,30]
[392341031,1761366643647,-151.0,0.000328,30]
[392341032,1761366643656,-151.0,0.000328,30]
[392341033,1761366643667,-500.0,0.00032876,2]
[392341034,1761366643678,-500.0,0.00032876,2]
[392341035,1761366643686,-500.0,0.00032876,2]
[392341036,1761366643695,-500.0,0.00032876,2]
[392341037,1761366643705,-500.0,0.00032876,2]
[392341038,1761366643715,-500.0,0.00032876,2]
[392341039,1761366643726,-500.0,0.00032876,2]
[392341040,1761366643735,-500.0,0.00032876,2]
[392341041,1761366643745,-483.7901493,0.00032876,2]
[392341042,1761366643756,-5514.0,0.000329,5]
[392341043,1761366643766,-31726.06,0.000332,14]
[392341044,1761366643775,-500.0,0.00033785,2]
[392341045,1761366643784,-10747.24344492,0.00033821,2]
[392341046,1761366643793,-300.0,0.000343,2]
[392341047,1761366643802,-345.25454409,0.000343,2]
[392341048,1761366643812,-6541.0,0.00034495,2]
[392341049,1761366643821,-3488.0,0.00034495,2]
[392341050,1761366643830,-3414.0,0.00034495,2]
[392341051,1761366643839,-819.0,0.00034495,2]
[392341052,1761366643849,-2054.0,0.00034495,2]
[392341053,1761366643859,-157.51440231,0.00034496,7]
[392341054,1761366643868,-150.0,0.00034496,7]
[392341055,1761366643878,-150.0,0.00034496,7]
[392341056,1761366643889,-152.0,0.00034572,3]
[392341057,1761366643899,-4090.4,0.000346,2]
[392341058,1761366643910,-150.99,0.00034649,2]
[392341059,1761366643920,-9999.99,0.00034649,2]
[392341060,1761366643929,-688.23,0.000347,14]
[392341061,1761366643938,-627.09,0.00035068,2]
[392341062,1761366643947,-299.99459039,0.000354,2]
[392341063,1761366643956,-1000.0,0.00035447,2]
[392341064,1761366643967,-659.43257876,0.00035471,2]
[392341065,1761366643976,-165.14074574,0.00035622,15]
[392341066,1761366643985,-1000.0,0.00035721,2]
[392341067,1761366643994,-860.07271286,0.00035817,8]
[392341068,1761366644003,-500.0,0.00035911,30]
[392341069,1761366644012,-2819.48,0.00035994,2]
[392341070,1761366644023,-1000.0,0.00035995,2]
[392341071,1761366644033,-8907.63870642,0.00036,5]
[392341072,1761366644043,-14334.57039724,0.00036,30]
[392341073,1761366644051,-49801.24575733,0.00036,2]
[392341074,1761366644061,-50116.0511711,0.00036,6]
[392341075,1761366644070,-10690.19649902,0.00036,2]
[392341076,1761366644079,-10747.24344492,0.00036039,2]
[392341077,1761366644088,-3177.63,0.00036172,2]
[392341078,1761366644097,-174.22,0.00036222,2]
[392341079,1761366644107,-183.70405959,0.0003626,2]
[392341080,1761366644116,-1000.0,0.00036269,2]
[392341081,1761366644125,-152.0,0.00036303,4]
[392341082,1761366644134,-947.05,0.000364,30]
[392341083,1761366644144,-4090.4,0.000364,2]
[392341084,1761366644153,-5888.0,0.00036449,2]
[392341085,1761366644162,-500.0,0.00036483,30]
[392341086,1761366644171,-1000.0,0.00036543,2]
[392341087,1761366644180,-666.0,0.00036595,3]
[392341088,1761366644189,-1000.0,0.00036606,2]
[392341089,1761366644198,-822.0407102,0.00036607,2]
[392341090,1761366644207,-150.0,0.00036616,7]
[392341091,1761366644216,-150.0,0.00036654,2]
[392341092,1761366644225,-946.31318,0.000367,22]
[392341093,1761366644235,-233.96096714,0.00036728,120]
[392341094,1761366644244,-168.0,0.00036735,2]
[392341095,1761366644253,-1079091.702564,0.00036777,2]
[392341096,1761366644262,-688.23,0.000368,14]
[392341097,1761366644271,-476.4830027,0.00036804,2]
[392341098,1761366644282,-151.0,0.00036814,14]
[392341099,1761366644295,-151.0,0.00036814,14]
[392341100,1761366644304,-151.0,0.00036814,14]
[392341101,1761366644314,-1000.0,0.00036817,2]
[392341102,1761366644323,-205864.790661,0.00036817,30]
[392341103,1761366644334,-708969.036612,0.00036817,30]
[392341104,1761366644342,-151.0,0.00036817,30]
[392341105,1761366644352,-153.146631,0.00036817,30]
[392341106,1761366644365,-155.291273,0.00036817,30]
[392341107,1761366644374,-151.0,0.00036817,30]
[392341108,1761366644383,-151.0,0.00036817,30]
[392341109,1761366644392,-155.384356,0.00036817,30]
[392341110,1761366644401,-151.0,0.00036817,30]
[392341111,1761366644410,-151.0,0.00036817,30]
[392341112,1761366644419,-151.0,0.00036817,30]
[392341113,1761366644428,-151.0,0.00036817,30]
[392341114,1761366644437,-159.630702,0.00036817,30]
[392341115,1761366644446,-151.0,0.00036817,30]
[392341116,1761366644455,-151.0,0.00036817,30]
[392341117,1761366644464,-258.605754,0.00036817,30]
[392341118,1761366644473,-151.0,0.00036817,30]
[392341119,1761366644482,-151.0,0.00036817,30]
[392341120,1761366644491,-151.0,0.00036817,30]
[392341121,1761366644500,-151.0,0.00036817,30]
[392341122,1761366644509,-226.674643,0.00036817,30]
[392341123,1761366644518,-151.0,0.00036836,2]
[392341124,1761366644527,-151.0,0.00036836,2]
[392341125,1761366644536,-151.0,0.00036836,2]
[392341126,1761366644545,-151.0,0.00036836,2]
[392341127,1761366644554,-151.0,0.00036836,2]